[Event "American Cup Open Champions 2024"]
[Site "Saint Louis"]
[Date "2024.03.13"]
[Round "1.5"]
[White "Aronian, Levon"]
[Black "Sevian, Samuel"]
[Result "1-0"]
[ECO "C13"]
[WhiteElo "2722"]
[BlackElo "2697"]
[Annotator "TA"]
[PlyCount "73"]
[EventDate "2024.03.11"]
[EventType "k.o."]
[EventCountry "USA"]
[SourceTitle "playchess.com"]
[Source "ChessBase"]
[SourceQuality "1"]
[TimeControl "900+10"]

{[%evp 11,73,33,34,33,13,-12,-25,-51,-41,-46,-42,-33,-36,-37,-14,-39,-8,-14,0,0,0,0,8,0,0,0,19,6,14,0,10,21,7,0,0,-15,193,59,81,56,127,0,152,134,156,102,102,0,173,100,903,903,898,879,895,871,897,907,1121,1112,1361,1289,1470,1379]} 1. e4 {[%emt 0:12:17]} e6 {[%emt 0:12:16]} 2. d4 {[%emt 0:00:09]} d5 {[%emt 0:00:09]} 3. Nc3 {[%emt 0:00:10]} Nf6 {[%emt 0:00:09]} 4. Bg5 {[%emt 0:00:10]} dxe4 {[%emt 0:00:09]} 5. Nxe4 {[%emt 0:00:09]} Be7 {[%emt 0:00:09]} 6. Bxf6 {[%emt 0:00:11]} gxf6 {[%emt 0:00:09]} 7. Nc3 {[%emt 0:00:09]} a6 {[%emt 0:00:26]} 8. a4 {[%emt 0:00:15]} Nc6 {[%emt 0:00:35]} 9. Nge2 {[%emt 0:00:22] Schwarz hat minimalen Vorteil.} e5 {[%emt 0:00:29]} 10. d5 {[%emt 0:00:09]} Nb4 {[%emt 0:00:09]} 11. Ng3 {[%emt 0:00:10]} f5 {[%emt 0:00:17]} 12. Bc4 {[%emt 0:00:14]} Qd6 {[%emt 0:00:11] Droht ...f4 und aus.} (12... h5 $5) 13. Bb3 {[%emt 0:00:44]} h5 {[%emt 0:00:33]} 14. Qe2 {[%emt 0:00:48]} h4 {[%emt 0:00:15]} 15. Nf1 {[%emt 0:00:09]} Bd7 {[%emt 0:00:21]} 16. Nd2 {[%emt 0:00:26]} e4 {[%emt 0:00:29]} 17. f3 {[%emt 0:00:15]} exf3 {[%emt 0:00:12]} 18. Nxf3 {[%emt 0:00:20]} O-O-O {[%emt 0:00:15] Weiss muss nun ...Rde8 beachten.} 19. O-O-O {[%emt 0:00:13]} Bf6 {[%emt 0:00:10] Pariert Ne5.} 20. Qf2 {[%emt 0:00:09]} Kb8 {[%emt 0:00:13]} 21. Nd4 {[%emt 0:00:10]} Rhg8 $132 {[%emt 0:00:17][%cal Bh8g8,Bg8g4,Bg4f4][%mdl 2080] Schwarz hält sich nicht zurück} 22. Nxf5 {[%emt 0:00:22]} Qe5 {[%emt 0:00:35]} 23. Rdf1 {[%emt 0:00:09]} Bh8 $2 {[%emt 0:00:18] [#]} (23... Bxf5 $11 {und Schwarz steht sicher.} 24. Qxf5 Qe3+ 25. Kb1 Bxc3) 24. Nxh4 {[%emt 0:00:29] Ein dynamisches Springerpaar.} (24. Nh6 $1 $18 {[%cal Rh6g8]}) 24... Rg4 {[%emt 0:00:10]} 25. Nf3 {[%emt 0:00:18] Verhindert Qg5+} Qd6 {[%emt 0:00:09]} (25... Qg7 $14) 26. Qd2 {[%emt 0:00:18]} (26. Rd1 $16) 26... Be8 $2 {[%emt 0:00:19]} (26... Bf5 $11) 27. h3 $16 {[%emt 0:00:13]} Rf4 {[%emt 0:00:09]} 28. Ne2 {[%emt 0:00:15]} (28. Re1 $142) 28... Re4 {[%emt 0:00:11][%cal Oe8a4] [#]} 29. Nc3 {[%emt 0:00:11]} (29. Ng5 $1 $16 {[%cal Rg5e4]} Re7 30. Rf5) 29... Rf4 $18 {[%emt 0:00:10]} 30. Kb1 {[%emt 0:00:09]} (30. Re1 $18) 30... Qc5 $2 {[%emt 0:00:12][%mdl 8192]} 31. Qxf4 {[%emt 0:00:11] Weiß steht klar auf Gewinn.} Bxc3 {[%emt 0:00:10]} 32. bxc3 {[%emt 0:00:09]} Nxd5 {[%emt 0:00:10]} 33. Bxd5 {[%emt 0:00:10]} Rxd5 {[%emt 0:00:09]} 34. Qb4 {[%emt 0:00:10]} Qc6 {[%emt 0:00:11]} 35. Rd1 {[%emt 0:00:10]} Rh5 {[%emt 0:00:09]} 36. Rhe1 {[%emt 0:00:09] Droht Matt per Rd8+.} Ka7 {[%emt 0:00:09]} 37. Re5 {[%emt 0:00:11] Gewichteter Fehlerwert: Weiß=0.32/Schwarz=0.32.  Verlustzug:     	---       	Schwarz=2     Fehler:       	Weiß=5     	Schwarz=2     Ungenau:       	Weiß=1     	Schwarz=1     OK:         	Weiß=5     	Schwarz=12    Bester:       	Weiß=3     	Schwarz=1} 1-0

[Event "American Cup Open Champions 2024"]
[Site "Saint Louis"]
[Date "2024.03.13"]
[Round "1.6"]
[White "Sevian, Samuel"]
[Black "Aronian, Levon"]
[Result "1/2-1/2"]
[ECO "C43"]
[WhiteElo "2697"]
[BlackElo "2722"]
[Annotator "TA"]
[PlyCount "59"]
[EventDate "2024.03.11"]
[EventType "k.o."]
[EventCountry "USA"]
[SourceTitle "playchess.com"]
[Source "ChessBase"]
[SourceQuality "1"]
[TimeControl "900+10"]

{[%evp 9,59,10,9,10,11,11,35,24,42,29,30,32,70,78,82,74,79,31,20,8,28,25,27,18,52,-25,0,-49,-53,-64,-29,-100,-76,-97,-104,-252,-256,-255,-106,-313,-253,-268,-123,-108,-114,-135,-85,-91,-13,-11,46,-80]} 1. e4 {[%emt 0:12:17]} e5 {[%emt 0:12:17]} 2. Nf3 {[%emt 0:00:08]} Nf6 {[%emt 0:00:10][%cal Bg8f6,Bf6e4,Be4c5,Bc5e6][%mdl 32]} 3. d4 {[%emt 0:00:21]} Nxe4 {[%emt 0:00:09]} 4. dxe5 {[%emt 0:00:09]} d5 {[%emt 0:00:16]} 5. Nbd2 {[%emt 0:00:09]} Qd7 {[%emt 0:00:13]} 6. Bd3 {[%emt 0:00:09]} Nc5 {[%emt 0:00:11]} 7. Be2 {[%emt 0:00:08]} Nc6 {[%emt 0:00:13]} 8. O-O {[%emt 0:00:09]} Be7 {[%emt 0:00:09]} 9. Re1 {[%emt 0:00:17]} O-O {[%emt 0:00:17]} 10. Nb3 {[%emt 0:00:36]} b6 {[%emt 0:00:37]} 11. Bb5 {[%emt 0:00:27] [#] Strongly threatening Nbd4.} Ne6 {[%emt 0:00:42]} 12. Nbd4 {[%emt 0:00:22] White is more active.} Bb7 {[%emt 0:00:15]} 13. Nf5 {[%emt 0:00:10]} (13. c3 $16 {Qa4 is the strong threat.} Nexd4 14. cxd4 (14. Nxd4 a6 $16)) 13... a6 $14 {[%emt 0:00:38]} 14. Bf1 {[%emt 0:00:18]} Rad8 {[%emt 0:00:16]} 15. a3 {[%emt 0:00:34]} Rfe8 {[%emt 0:00:12]} 16. b4 {[%emt 0:00:10]} Bf8 {[%emt 0:00:09]} 17. Bb2 {[%emt 0:00:12]} (17. Bd3 $14) 17... Ne7 {[%emt 0:00:14]} 18. Ng3 {[%emt 0:00:16]} (18. N5d4 $11 {feels stronger.}) 18... c5 $15 {[%emt 0:00:13]} 19. h4 {[%emt 0:00:12]} d4 {[%emt 0:00:14]} 20. Bd3 {[%emt 0:00:09]} (20. bxc5 $11 bxc5 21. h5) 20... Qc7 {[%emt 0:00:28]} 21. bxc5 {[%emt 0:00:14]} bxc5 {[%emt 0:00:09]} 22. Nh5 {[%emt 0:00:53]} (22. Bf1 $17 {was necessary.}) 22... c4 $19 {[%emt 0:00:13]} 23. Be4 {[%emt 0:00:08] [#]} Ng6 {[%emt 0:00:17]} (23... Bxe4 $1 $19 24. Rxe4 Qb7) 24. Bf5 $2 {[%emt 0:00:14]} (24. Ng3 $17) 24... Bxf3 {[%emt 0:00:13]} 25. Qxf3 {[%emt 0:00:11]} Nxh4 {[%emt 0:00:18]} (25... c3 $19 {has better winning chances.} 26. Bc1 d3 (26... Nxh4 27. Qg4 $17) (26... Nxe5 $2 27. Qg3 $17) 27. Bxd3 Nxe5 (27... Nxh4 28. Qg3 $14) 28. Rxe5 Qxe5) 26. Qg4 $17 {[%emt 0:00:08]} Ng6 {[%emt 0:00:09] Excellent horsemanship.} 27. Rad1 {[%emt 0:00:17]} d3 {[%emt 0:00:12]} (27... Nxe5 $2 {is the wrong capture.} 28. Nf6+ Kh8 29. Qh5 $18 (29. Nxe8 Rxe8 30. Qh4 h6 $18)) (27... Qa5 $142 28. Kh1 (28. Bxe6 Rxe6 29. Bxd4 Rd5 $17) 28... d3 (28... Bxa3 29. Ra1 $15) (28... Nxe5 $2 29. Nf6+ Kh8 30. Qh5 $18) 29. Qxc4 Qb6 (29... Bxa3 30. Bxa3 Qxa3 31. Bxd3 $11)) 28. cxd3 {[%emt 0:00:09]} c3 {[%emt 0:00:10]} ({Black should try} 28... Qb6 $17 29. Ba1 cxd3 30. Bxd3 Bxa3) 29. Rc1 $11 {[%emt 0:00:13]} c2 {[%emt 0:00:16]} ({Black should play} 29... Nc5 $11 30. Bxc3 (30. Rxc3 Rxe5 31. Rd1 Qb6 $17) 30... Nb3 (30... Nxd3 31. Bxd3 Rxd3 32. Bb4 $17)) 30. d4 {[%emt 0:00:08] Weighted Error Value: White=0.37/Black=0.36.  Loses game:     	White=1     	---        Mistake:       	White=6     	Black=5      Inaccurate:     	---       	Black=3      OK:         	White=4     	Black=6      Best:        	White=4     	Black=1} (30. Qa4 $1 $14) 1/2-1/2

[Event "American Cup Open Champions 2024"]
[Site "Saint Louis"]
[Date "2024.03.14"]
[Round "2.1"]
[White "Caruana, Fabiano"]
[Black "Aronian, Levon"]
[Result "1/2-1/2"]
[ECO "D86"]
[WhiteElo "2804"]
[BlackElo "2722"]
[Annotator "TA"]
[PlyCount "107"]
[EventDate "2024.03.11"]
[EventType "k.o."]
[EventCountry "USA"]
[SourceTitle "playchess.com"]
[Source "ChessBase"]
[SourceQuality "1"]
[TimeControl "5400+30"]

{[%evp 36,107,24,13,23,19,55,0,0,0,0,0,0,8,25,22,31,0,21,0,16,0,0,0,0,0,0,0,0,0,0,0,0,0,0,0,0,0,0,0,0,0,0,0,0,0,-2,-2,0,0,0,0,0,-8,0,-17,0,0,0,0,0,0,0,0,0,0,0,0,0,0,0,0,0,0]} 1. d4 {[%emt 0:00:05]} Nf6 {[%emt 0:00:06]} 2. c4 {[%emt 0:00:03]} g6 {[%emt 0:00:05]} 3. Nc3 {[%emt 0:00:04]} d5 {[%emt 0:00:03]} 4. cxd5 {[%emt 0:00:04]} Nxd5 {[%emt 0:00:03]} 5. e4 {[%emt 0:00:06]} Nxc3 {[%emt 0:00:04]} 6. bxc3 {[%emt 0:00:04]} Bg7 {[%emt 0:00:04]} 7. Bc4 {[%emt 0:00:07]} O-O {[%emt 0:00:05]} 8. Ne2 {[%emt 0:00:08]} Nc6 {[%emt 0:00:05]} 9. O-O {[%emt 0:01:58]} Na5 {[%emt 0:00:04] D86: Exchange Grünfeld: Classical Line (7 Bc4).} 10. Bd3 {[%emt 0:00:26]} e5 {[%emt 0:00:06]} 11. Rb1 {[%emt 0:05:26]} b6 {[%emt 0:01:12]} 12. Be3 {[%emt 0:12:24]} Be6 $146 {[%emt 0:03:25]} ({Predecessor:} 12... f5 13. dxe5 Bxe5 14. Rb5 Qe8 15. Bd4 Bxd4 16. cxd4 fxe4 17. Re5 Qf7 18. Bxe4 Bb7 19. Bxb7 Nxb7 {0-1 Hirn,O (2169)-Prusikin,M (2556) Nuremberg-ch op 05th 2005 (4)}) 13. d5 {[%emt 0:07:10]} Bd7 {[%emt 0:00:02]} 14. c4 {[%emt 0:00:09]} Nb7 {[%emt 0:00:03]} 15. Qd2 {[%emt 0:00:08]} Qe7 {[%emt 0:02:17]} 16. Bc2 {[%emt 0:06:33]} c5 {[%emt 0:07:31]} 17. dxc6 {[%emt 0:01:23]} Bxc6 {[%emt 0:00:05]} 18. Nc3 {[%emt 0:00:09]} f5 {[%emt 0:03:39]} 19. f3 {[%emt 0:05:14]} f4 {[%emt 0:09:50]} 20. Bf2 {[%emt 0:00:39]} Rfc8 {[%emt 0:04:38]} 21. Qe2 {[%emt 0:01:49]} (21. Nd5 $14 {might be stronger.} Qf8 22. Bb3) 21... Bf8 $11 {[%emt 0:08:21]} 22. Nd5 {[%emt 0:04:17]} Qg7 {[%emt 0:01:11]} 23. g3 {[%emt 0:02:02]} Bd6 {[%emt 0:05:28]} 24. Rbd1 {[%emt 0:06:58]} Rf8 {[%emt 0:03:34]} 25. gxf4 {[%emt 0:02:13]} exf4 {[%emt 0:02:03]} 26. Kh1 {[%emt 0:00:05]} Rac8 {[%emt 0:04:34]} 27. Rg1 {[%emt 0:06:37]} (27. Bb3 $5 Kh8 28. Rg1 $11) 27... Bc5 {[%emt 0:05:43]} 28. Rg5 {[%emt 0:00:49]} Bxf2 {[%emt 0:04:18]} 29. Qxf2 {[%emt 0:00:25]} Bxd5 {[%emt 0:01:30]} 30. Rgxd5 {[%emt 0:02:48]} Nc5 {[%emt 0:00:20]} 31. Qd4 {[%emt 0:05:06]} Qxd4 {[%emt 0:04:04]} 32. R1xd4 {[%emt 0:00:46]} Kf7 {[%emt 0:00:12]} 33. Kg2 {[%emt 0:00:34]} Ke7 {[%emt 0:00:28]} 34. h4 {[%emt 0:00:59]} Rfd8 {[%emt 0:01:52]} 35. Rd1 {[%emt 0:08:02]} Ne6 {[%emt 0:05:36]} 36. Bb3 {[%emt 0:01:20]} Nc7 {[%emt 0:01:38]} 37. e5 {[%emt 0:03:55]} (37. Rxd8 {simplifies} Rxd8 38. Rxd8 Kxd8 39. h5) 37... Ne6 {[%emt 0:00:18]} 38. Kf2 {[%emt 0:02:23]} Rc7 {[%emt 0:02:41]} 39. h5 {[%emt 0:03:13]} gxh5 {[%emt 0:01:35]} 40. Rxd8 {[%emt 0:02:38]} Nxd8 {[%emt 0:00:08]} 41. Rh1 {[%emt 0:00:03]} Rc5 {[%emt 0:02:28]} 42. Rxh5 {[%emt 0:00:05]} Nc6 {[%emt 0:00:47]} 43. Rxh7+ {[%emt 0:00:14]} Ke6 {[%emt 0:00:05]} 44. Ba4 {[%emt 0:01:27]} Nxe5 {[%emt 0:00:19]} 45. Bb5 {[%emt 0:05:16]} Nxc4 {[%emt 0:01:24]} 46. Bxc4+ {[%emt 0:00:04]} Rxc4 {[%emt 0:00:04]} 47. Rxa7 {[%emt 0:00:02]} Rc2+ {[%emt 0:00:06]} 48. Ke1 {[%emt 0:00:09]} b5 {[%emt 0:00:31]} 49. Rb7 {[%emt 0:00:46]} Rxa2 {[%emt 0:00:07]} 50. Rxb5 {[%emt 0:00:04]} Ra1+ {[%emt 0:00:06]} 51. Kf2 {[%emt 0:00:02]} Ra2+ {[%emt 0:00:04]} 52. Ke1 {[%emt 0:00:02]} Ra1+ {[%emt 0:00:05]} 53. Kf2 {[%emt 0:00:02]} Ra2+ {[%emt 0:00:06]} 54. Ke1 {[%emt 0:00:21]} 1/2-1/2

[Event "American Cup Open Champions 2024"]
[Site "Saint Louis"]
[Date "2024.03.14"]
[Round "2.1"]
[White "So, Wesley"]
[Black "Robson, Ray"]
[Result "1/2-1/2"]
[ECO "B90"]
[WhiteElo "2757"]
[BlackElo "2696"]
[Annotator "TA"]
[PlyCount "56"]
[EventDate "2024.03.11"]
[EventType "k.o."]
[EventCountry "USA"]
[SourceTitle "playchess.com"]
[Source "ChessBase"]
[SourceQuality "1"]
[TimeControl "5400+30"]

{[%evp 21,56,16,19,16,29,18,11,22,52,60,55,36,50,56,50,0,0,0,8,2,7,-18,-18,-33,-22,-36,-43,-31,-33,-29,-6,0,0,-25,0,0,0]} 1. e4 {[%emt 0:00:02]} c5 {[%emt 0:01:43]} 2. Nf3 {[%emt 0:00:26]} d6 {[%emt 0:00:17]} 3. d4 {[%emt 0:00:05]} cxd4 {[%emt 0:00:11]} 4. Nxd4 {[%emt 0:00:05]} Nf6 {[%emt 0:00:16]} 5. Nc3 {[%emt 0:00:04]} a6 {[%emt 0:00:18]} 6. Be3 {[%emt 0:00:34]} Ng4 {[%emt 0:00:27]} 7. Bg5 {[%emt 0:00:06]} h6 {[%emt 0:00:15]} 8. Bh4 {[%emt 0:00:10]} g5 {[%emt 0:00:32]} 9. Bg3 {[%emt 0:00:05]} Bg7 {[%emt 0:00:33]} 10. Qd2 {[%emt 0:00:11]} Nc6 {[%emt 0:04:31]} 11. Nb3 {[%emt 0:00:38]} b5 {[%emt 0:02:01]} 12. h4 {[%emt 0:00:09]} gxh4 {[%emt 0:02:59]} 13. Rxh4 {[%emt 0:00:07]} Nge5 {[%emt 0:05:15]} 14. O-O-O {[%emt 0:00:10]} Be6 {[%emt 0:04:56]} 15. Bxe5 {[%emt 0:00:29]} Nxe5 {[%emt 0:16:49]} 16. Kb1 {[%emt 0:01:28]} Rc8 {[%emt 0:04:46]} 17. Nd4 $1 {[%emt 0:06:56]} Qa5 {[%emt 0:10:19]} 18. Nd5 {[%emt 0:04:23]} Qxd2 {[%emt 0:01:41]} 19. Rxd2 {[%emt 0:00:03]} Nc4 {[%emt 0:04:29]} 20. Rd1 {[%emt 0:06:13]} (20. Rd3 {simplifies} Bxd5 21. exd5 Rc5 22. Nb3) 20... Rc5 {[%emt 0:01:29]} 21. Bxc4 {[%emt 0:08:23]} Rxc4 {[%emt 0:01:42]} 22. Nxe6 {[%emt 0:18:35]} fxe6 {[%emt 0:00:08]} 23. Ne3 {[%emt 0:06:00]} Rb4 {[%emt 0:11:26]} 24. b3 {[%emt 0:00:16]} Bf6 {[%emt 0:01:22]} 25. Rf4 {[%emt 0:02:17][%cal Of4f6] Threatens to win with Rxf6!} Be5 {[%emt 0:01:45]} 26. Rh4 {[%emt 0:00:05]} Bf6 {[%emt 0:02:06]} 27. Rf4 {[%emt 0:00:02][%cal Of4f6] [#] Black must now prevent Rxf6!} Be5 {[%emt 0:02:13]} 28. Rh4 {[%emt 0:00:04]} Bf6 {[%emt 0:04:11] Weighted Error Value: White=0.10 (very precise) /Black=0.08 (flawless) .  Inaccurate:     	White=1     	Black=1      OK:         	White=7     	Black=5      Strong:       	White=1     	---} 1/2-1/2

[Event "American Cup Open Champions 2024"]
[Site "Saint Louis"]
[Date "2024.03.14"]
[Round "2.2"]
[White "Aronian, Levon"]
[Black "Caruana, Fabiano"]
[Result "1/2-1/2"]
[ECO "C68"]
[WhiteElo "2722"]
[BlackElo "2804"]
[Annotator "TA"]
[PlyCount "149"]
[EventDate "2024.03.11"]
[EventType "k.o."]
[EventCountry "USA"]
[SourceTitle "playchess.com"]
[Source "ChessBase"]
[SourceQuality "1"]
[TimeControl "5400+30"]

{[%evp 61,149,21,13,14,29,-16,48,46,50,51,48,39,113,34,93,21,23,6,96,21,46,43,50,8,69,8,8,8,8,8,8,8,8,8,8,0,0,0,0,0,0,0,0,0,0,0,0,0,0,0,0,0,0,0,0,0,0,0,0,0,0,0,0,0,0,0,0,0,0,0,0,0,0,0,0,0,0,0,0,0,0,0,0,0,0,0,0,0,0,0]} 1. e4 {[%emt 1:15:42]} e5 {[%emt 1:15:46]} 2. Nf3 {[%emt 0:00:22]} Nc6 {[%emt 0:00:21]} 3. Bb5 {[%emt 0:00:22]} a6 {[%emt 0:00:22]} 4. Bxc6 {[%emt 0:00:22]} dxc6 {[%emt 0:00:21]} 5. Nc3 {[%emt 0:00:22]} f6 {[%emt 0:00:24]} 6. d4 {[%emt 0:00:21]} exd4 {[%emt 0:00:22]} 7. Qxd4 {[%emt 0:00:22]} Qxd4 {[%emt 0:00:28]} 8. Nxd4 {[%emt 0:00:21]} Bd7 {[%emt 0:00:24]} 9. f3 {[%emt 0:00:22] C68: Spanische Partie (Abtauschvariante).} O-O-O {[%emt 0:00:31]} 10. h4 {[%emt 0:00:22]} h5 {[%emt 0:00:22]} 11. Be3 {[%emt 0:01:15]} Ne7 {[%emt 0:00:32]} 12. Kf2 {[%emt 0:00:36]} Ng6 {[%emt 0:00:30]} 13. Rad1 {[%emt 0:00:36]} Bd6 $146 {[%emt 0:01:31]} ({Predecessor:} 13... Ne5 14. b3 Bd6 15. Nf5 Bxf5 16. exf5 Nf7 17. Ne4 Be5 18. Rxd8+ Rxd8 19. g4 Rh8 {0-1 Chernov,V (2274)-Koellner,R (2410) Baden Baden op 2023 (6)}) 14. Nb3 {[%emt 0:01:04]} Ne5 {[%emt 0:01:32]} 15. Bc5 {[%emt 0:00:49]} Nc4 {[%emt 0:00:45]} 16. Bxd6 {[%emt 0:00:44]} cxd6 {[%emt 0:00:36]} 17. Nd2 {[%emt 0:00:21]} Ne5 {[%emt 0:00:29]} 18. Nf1 {[%emt 0:00:37]} Kc7 {[%emt 0:00:42]} 19. Ne3 {[%emt 0:00:23]} Be6 {[%emt 0:00:37]} 20. Ne2 {[%emt 0:00:33]} Bf7 {[%emt 0:00:54]} 21. Rd2 {[%emt 0:01:03]} Nc4 {[%emt 0:01:07]} 22. Nxc4 {[%emt 0:00:24]} Bxc4 {[%emt 0:00:22]} 23. Nd4 {[%emt 0:00:56]} Bf7 {[%emt 0:00:34]} 24. Nf5 {[%emt 0:01:11]} g6 {[%emt 0:00:23]} 25. Ne3 {[%emt 0:00:22]} b5 {[%emt 0:00:37]} 26. a3 {[%emt 0:00:36]} Rhe8 {[%emt 0:00:48]} 27. Rc1 {[%emt 0:00:42]} Re5 {[%emt 0:01:42]} 28. b4 {[%emt 0:00:21]} Rb8 {[%emt 0:02:33]} 29. Rcd1 {[%emt 0:01:13]} Rd8 {[%emt 0:00:22]} 30. Rd4 {[%emt 0:00:28]} Ree8 {[%emt 0:01:54]} 31. g4 {[%emt 0:02:32]} hxg4 {[%emt 0:00:52]} 32. Nxg4 {[%emt 0:00:22]} Re6 {[%emt 0:00:29]} 33. f4 {[%emt 0:01:13]} Rde8 {[%emt 0:06:08]} (33... f5 $11 34. Nh6 Rf8 35. exf5 gxf5 36. Nxf7 Rxf7) 34. e5 $14 {[%emt 0:01:15]} fxe5 {[%emt 0:00:30]} 35. fxe5 {[%emt 0:00:21]} d5 {[%emt 0:00:26]} 36. Rf4 {[%emt 0:00:28]} R8e7 {[%emt 0:00:30]} (36... R6e7 $1 $14) 37. Re1 {[%emt 0:03:28]} (37. Kg3 $16) 37... c5 {[%emt 0:00:29] [#]} (37... g5 $1 $14 38. hxg5 Rg6) 38. c3 {[%emt 0:00:43]} ({Keinesfalls} 38. bxc5 Rc6 $11) (38. Nh6 $1 $16 Be8 39. Ng8 (39. bxc5 Rxe5 40. Rxe5 Rxe5 $11) (39. Ng4 a5 $11)) 38... Rc6 $11 {[%emt 0:00:55]} 39. Re3 {[%emt 0:00:21]} Kb6 {[%emt 0:01:13]} (39... Be6 $11 {hält das Gleichgewicht.}) 40. Nf6 {[%emt 0:00:29]} ({Vorzuziehen ist} 40. Rf6 $16) 40... Be6 {[%emt 0:00:43]} 41. Rg3 {[%emt 0:00:39]} cxb4 {[%emt 0:00:32]} 42. axb4 {[%emt 0:00:21]} a5 $1 {[%emt 0:00:28]} 43. bxa5+ {[%emt 0:00:40]} (43. Rxg6 $14 a4 44. Rf3) 43... Kxa5 $11 {[%emt 0:00:21]} 44. Rd4 {[%emt 0:00:22]} Bf7 {[%emt 0:00:30]} 45. Re3 {[%emt 0:01:11]} Rc4 {[%emt 0:00:22]} 46. Nxd5 {[%emt 0:00:31]} Bxd5 {[%emt 0:00:22]} 47. Rxd5 {[%emt 0:00:21]} Rxh4 {[%emt 0:00:23]} 48. e6 {[%emt 0:00:36]} Kb6 {[%emt 0:00:43]} 49. Rd7 {[%emt 0:01:08]} Rhh7 {[%emt 0:00:21]} 50. Red3 {[%emt 0:00:27]} Kc6 {[%emt 0:00:38]} 51. R3d6+ {[%emt 0:01:09]} Kc5 {[%emt 0:00:21]} 52. Rd4 {[%emt 0:00:21]} Kc6 {[%emt 0:00:31]} 53. R7d6+ {[%emt 0:00:21]} Kc5 {[%emt 0:00:23]} 54. R4d5+ {[%emt 0:01:25]} Kc4 {[%emt 0:00:21]} 55. Re5 {[%emt 0:00:26]} Rh5 {[%emt 0:01:06]} 56. Rc6+ {[%emt 0:00:26]} Kd3 {[%emt 0:00:40]} 57. Re3+ {[%emt 0:00:22]} Kc2 {[%emt 0:00:26]} 58. Kg3 {[%emt 0:00:35]} Kd2 {[%emt 0:00:34]} 59. Re4 {[%emt 0:00:37]} Kc2 {[%emt 0:00:31]} 60. Rg4 {[%emt 0:00:57]} Re5 {[%emt 0:00:35]} 61. Rxg6 {[%emt 0:00:22]} Re3+ {[%emt 0:00:21]} 62. Kf4 {[%emt 0:00:21]} Rxc3 {[%emt 0:00:21]} 63. Rb6 {[%emt 0:00:21]} Rc5 {[%emt 0:00:31]} 64. Ke4 {[%emt 0:00:53]} Kc3 {[%emt 0:00:26]} 65. Rg3+ {[%emt 0:00:39]} Kb4 {[%emt 0:00:32]} 66. Rd6 {[%emt 0:00:48]} Rh7 {[%emt 0:00:37]} 67. Rd4+ {[%emt 0:01:41]} Rc4 {[%emt 0:00:21]} 68. Rxc4+ {[%emt 0:00:21]} bxc4 {[%emt 0:00:27]} 69. Kd4 {[%emt 0:00:39]} c3 {[%emt 0:00:44]} 70. Rxc3 {[%emt 0:00:32]} Rh4+ {[%emt 0:00:23]} 71. Kd5 {[%emt 0:00:21]} Kxc3 {[%emt 0:00:21]} 72. e7 {[%emt 0:00:21]} Rh8 {[%emt 0:00:22]} 73. Ke6 {[%emt 0:00:21]} Re8 {[%emt 0:00:21]} 74. Kd7 {[%emt 0:00:22]} Rxe7+ {[%emt 0:00:21]} 75. Kxe7 {[%emt 0:00:21]} 1/2-1/2